[Event "December 12 Late 2023"]
[Site "https://www.chess.com"]
[Date "2023.12.12"]
[Round "7"]
[White "Mendez Fortes, Eduardo Jesus"]
[Black "Gasparyan, David"]
[Result "1-0"]
[Board "61"]
[TimeControl "180+1"]
[WhiteFideId "3502376"]
[BlackFideId "13311980"]
[WhiteElo "2607"]
[BlackElo "2498"]
[WhiteTeam "CUB"]
[BlackTeam "USA"]
[WhiteClock "0:00:26"]
[BlackClock "0:00:00"]

1. e4 {[%clk 0:02:58]}  c5 {[%clk 0:02:52]} 2. Nf3 {[%clk 0:02:56]}  Nf6 {[%clk 0:02:46]} 3. Nc3 {[%clk 0:02:55]}  Nc6 {[%clk 0:02:43]} 4. d4 {[%clk 0:02:53]}  cxd4 {[%clk 0:02:41]} 5. Nxd4 {[%clk 0:02:53]}  d6 {[%clk 0:02:41]} 6. Bg5 {[%clk 0:02:53]}  Bd7 {[%clk 0:02:36]} 7. Qd2 {[%clk 0:02:49]}  Nxd4 {[%clk 0:02:31]} 8. Qxd4 {[%clk 0:02:50]}  e5 {[%clk 0:02:29]} 9. Qd2 {[%clk 0:02:49]}  Be7 {[%clk 0:02:29]} 10. f3 {[%clk 0:02:43]}  O-O {[%clk 0:02:18]} 11. O-O-O {[%clk 0:02:40]}  Rc8 {[%clk 0:02:10]} 12. h4 {[%clk 0:02:39]}  Re8 {[%clk 0:02:04]} 13. g4 {[%clk 0:02:32]}  Be6 {[%clk 0:01:59]} 14. Kb1 {[%clk 0:02:26]}  h6 {[%clk 0:01:49]} 15. Be3 {[%clk 0:02:26]}  Nd7 {[%clk 0:01:24]} 16. g5 {[%clk 0:02:22]}  h5 {[%clk 0:01:22]} 17. Nd5 {[%clk 0:02:12]}  Nf8 {[%clk 0:01:21]} 18. Rg1 {[%clk 0:02:09]}  Ng6 {[%clk 0:01:21]} 19. Qf2 {[%clk 0:02:04]}  b6 {[%clk 0:01:16]} 20. Bb5 {[%clk 0:02:02]}  Rf8 {[%clk 0:01:12]} 21. Ba4 {[%clk 0:02:02]}  Bd7 {[%clk 0:01:00]} 22. Bb3 {[%clk 0:01:56]}  Be6 {[%clk 0:00:53]} 23. Rd2 {[%clk 0:01:56]}  Qd7 {[%clk 0:00:48]} 24. Rgd1 {[%clk 0:01:55]}  Rfd8 {[%clk 0:00:48]} 25. Rd3 {[%clk 0:01:51]}  Bf8 {[%clk 0:00:43]} 26. Qe1 {[%clk 0:01:49]}  Qb5 {[%clk 0:00:35]} 27. Bf2 {[%clk 0:01:47]}  Re8 {[%clk 0:00:33]} 28. Qd2 {[%clk 0:01:45]}  Qd7 {[%clk 0:00:24]} 29. Qb4 {[%clk 0:01:37]}  Ne7 {[%clk 0:00:17]} 30. Ba4 {[%clk 0:01:35]}  Nc6 {[%clk 0:00:17]} 31. Qb5 {[%clk 0:01:28]}  Qb7 {[%clk 0:00:15]} 32. R3d2 {[%clk 0:01:24]}  Red8 {[%clk 0:00:15]} 33. Qf1 {[%clk 0:01:23]}  Rb8 {[%clk 0:00:12]} 34. Bb5 {[%clk 0:01:23]}  Na5 {[%clk 0:00:05]} 35. Nb4 {[%clk 0:01:16]}  Qa8 {[%clk 0:00:02]} 36. Ba6 {[%clk 0:01:14]}  Rd7 {[%clk 0:00:02]} 37. Be3 {[%clk 0:01:12]}  Rc7 {[%clk 0:00:02]} 38. f4 {[%clk 0:01:11]}  Nc4 {[%clk 0:00:03]} 39. Rd3 {[%clk 0:01:00]}  Nxe3 {[%clk 0:00:02]} 40. Rxe3 {[%clk 0:01:00]}  exf4 {[%clk 0:00:03]} 41. Qxf4 {[%clk 0:00:59]}  Bc4 {[%clk 0:00:03]} 42. Bxc4 {[%clk 0:00:57]}  Rxc4 {[%clk 0:00:04]} 43. Nd5 {[%clk 0:00:56]}  Re8 {[%clk 0:00:05]} 44. g6 {[%clk 0:00:55]}  fxg6 {[%clk 0:00:04]} 45. Qg5 {[%clk 0:00:55]}  Qb7 {[%clk 0:00:04]} 46. Qxg6 {[%clk 0:00:54]}  Qf7 {[%clk 0:00:04]} 47. Qg1 {[%clk 0:00:51]}  Rcxe4 {[%clk 0:00:04]} 48. Red3 {[%clk 0:00:45]}  Rg4 {[%clk 0:00:04]} 49. Qh1 {[%clk 0:00:40]}  Be7 {[%clk 0:00:05]} 50. Rf3 {[%clk 0:00:35]}  Qg6 {[%clk 0:00:04]} 51. Nf4 {[%clk 0:00:31]}  Qh7 {[%clk 0:00:02]} 52. Re1 {[%clk 0:00:29]}  Qf5 {[%clk 0:00:00]} 53. Nd5 {[%clk 0:00:26]} 1-0

[Event "December 12 Late 2023"]
[Site "https://www.chess.com"]
[Date "2023.12.12"]
[Round "7"]
[White "Mirzoev, Azer"]
[Black "Yandarbiev, Ruslan"]
[Result "1-0"]
[Board "62"]
[TimeControl "180+1"]
[WhiteFideId "13400304"]
[BlackFideId "4115023"]
[WhiteElo "2607"]
[BlackElo "2498"]
[WhiteTeam "AZE"]
[BlackTeam "RUS"]
[WhiteClock "0:00:36"]
[BlackClock "0:00:04"]

1. d4 {[%clk 0:02:59]}  Nf6 {[%clk 0:02:58]} 2. c4 {[%clk 0:02:58]}  e5 {[%clk 0:02:58]} 3. dxe5 {[%clk 0:02:58]}  Ng4 {[%clk 0:02:58]} 4. Bf4 {[%clk 0:02:58]}  Nc6 {[%clk 0:02:57]} 5. Nf3 {[%clk 0:02:57]}  Bb4+ {[%clk 0:02:57]} 6. Nbd2 {[%clk 0:02:57]}  Qe7 {[%clk 0:02:57]} 7. e3 {[%clk 0:02:56]}  Ngxe5 {[%clk 0:02:57]} 8. Nxe5 {[%clk 0:02:56]}  Nxe5 {[%clk 0:02:58]} 9. Be2 {[%clk 0:02:57]}  O-O {[%clk 0:02:56]} 10. O-O {[%clk 0:02:57]}  Bxd2 {[%clk 0:02:52]} 11. Qxd2 {[%clk 0:02:56]}  d6 {[%clk 0:02:49]} 12. Qc3 {[%clk 0:02:48]}  b6 {[%clk 0:02:48]} 13. Bg3 {[%clk 0:02:43]}  Bb7 {[%clk 0:02:45]} 14. f3 {[%clk 0:02:44]}  a5 {[%clk 0:02:40]} 15. Rfe1 {[%clk 0:02:43]}  Nd7 {[%clk 0:02:34]} 16. e4 {[%clk 0:02:40]}  Nc5 {[%clk 0:02:33]} 17. Bf1 {[%clk 0:02:40]}  Rfe8 {[%clk 0:02:24]} 18. b3 {[%clk 0:02:40]}  f6 {[%clk 0:02:20]} 19. h3 {[%clk 0:02:31]}  Qf7 {[%clk 0:02:06]} 20. Kh2 {[%clk 0:02:31]}  h5 {[%clk 0:02:01]} 21. a3 {[%clk 0:02:30]}  Ne6 {[%clk 0:01:45]} 22. b4 {[%clk 0:02:29]}  Qg6 {[%clk 0:01:41]} 23. Bf2 {[%clk 0:02:27]}  axb4 {[%clk 0:01:32]} 24. axb4 {[%clk 0:02:27]}  f5 {[%clk 0:01:29]} 25. Rxa8 {[%clk 0:02:25]}  Bxa8 {[%clk 0:01:27]} 26. exf5 {[%clk 0:02:25]}  Qxf5 {[%clk 0:01:27]} 27. Qd3 {[%clk 0:02:16]}  Qxd3 {[%clk 0:01:17]} 28. Bxd3 {[%clk 0:02:16]}  Kf7 {[%clk 0:01:18]} 29. h4 {[%clk 0:02:01]}  Nf4 {[%clk 0:01:17]} 30. Rxe8 {[%clk 0:01:59]}  Kxe8 {[%clk 0:01:18]} 31. Bf1 {[%clk 0:01:59]}  Ne6 {[%clk 0:01:12]} 32. Kg3 {[%clk 0:01:58]}  Kf7 {[%clk 0:01:09]} 33. Bd3 {[%clk 0:01:56]}  Kf6 {[%clk 0:01:08]} 34. Be1 {[%clk 0:01:56]}  Bc6 {[%clk 0:00:52]} 35. Bc3+ {[%clk 0:01:55]}  Kf7 {[%clk 0:00:52]} 36. Kf2 {[%clk 0:01:53]}  Nf4 {[%clk 0:00:46]} 37. Bf1 {[%clk 0:01:53]}  Ng6 {[%clk 0:00:46]} 38. g3 {[%clk 0:01:53]}  Ne5 {[%clk 0:00:46]} 39. Be2 {[%clk 0:01:53]}  Ke6 {[%clk 0:00:45]} 40. Ke3 {[%clk 0:01:53]}  Bb7 {[%clk 0:00:44]} 41. Kf4 {[%clk 0:01:50]}  Kf6 {[%clk 0:00:42]} 42. g4 {[%clk 0:01:46]}  hxg4 {[%clk 0:00:41]} 43. fxg4 {[%clk 0:01:47]}  Ke6 {[%clk 0:00:41]} 44. h5 {[%clk 0:01:46]}  Bc8 {[%clk 0:00:19]} 45. g5 {[%clk 0:01:46]}  Bd7 {[%clk 0:00:13]} 46. Bf1 {[%clk 0:01:44]}  Be8 {[%clk 0:00:12]} 47. h6 {[%clk 0:01:13]}  gxh6 {[%clk 0:00:13]} 48. gxh6 {[%clk 0:01:14]}  Bg6 {[%clk 0:00:13]} 49. Bxe5 {[%clk 0:01:06]}  dxe5+ {[%clk 0:00:13]} 50. Kg5 {[%clk 0:01:07]}  Kf7 {[%clk 0:00:09]} 51. Bh3 {[%clk 0:01:00]}  e4 {[%clk 0:00:07]} 52. Be6+ {[%clk 0:00:37]}  Ke7 {[%clk 0:00:05]} 53. Kxg6 {[%clk 0:00:36]}  e3 {[%clk 0:00:06]} 54. Bg4 {[%clk 0:00:36]}  e2 {[%clk 0:00:04]} 55. Bxe2 {[%clk 0:00:36]} 1-0

[Event "December 12 Late 2023"]
[Site "https://www.chess.com"]
[Date "2023.12.12"]
[Round "7"]
[White "Shton, Roman"]
[Black "Sivakumar, Shaaketh"]
[Result "0-1"]
[Board "64"]
[TimeControl "180+1"]
[WhiteFideId "14137461"]
[BlackFideId "30940176"]
[WhiteElo "2494"]
[BlackElo "2581"]
[WhiteTeam "UKR"]
[BlackTeam "USA"]
[WhiteClock "0:00:03"]
[BlackClock "0:01:29"]

1. d4 {[%clk 0:03:00]}  e6 {[%clk 0:02:59]} 2. Nf3 {[%clk 0:03:01]}  b6 {[%clk 0:03:00]} 3. g3 {[%clk 0:03:00]}  Bb7 {[%clk 0:03:00]} 4. Bg2 {[%clk 0:03:01]}  f5 {[%clk 0:03:00]} 5. Nc3 {[%clk 0:02:59]}  Nf6 {[%clk 0:03:01]} 6. Bg5 {[%clk 0:02:59]}  d5 {[%clk 0:02:59]} 7. O-O {[%clk 0:02:52]}  Nbd7 {[%clk 0:03:00]} 8. Qd3 {[%clk 0:02:48]}  Bd6 {[%clk 0:03:00]} 9. Nb5 {[%clk 0:02:43]}  Be7 {[%clk 0:02:59]} 10. Bf4 {[%clk 0:02:42]}  Rc8 {[%clk 0:02:39]} 11. Nxa7 {[%clk 0:02:42]}  Ra8 {[%clk 0:02:40]} 12. Nb5 {[%clk 0:02:42]}  Rc8 {[%clk 0:02:41]} 13. Ng5 {[%clk 0:02:39]}  Nf8 {[%clk 0:02:39]} 14. c4 {[%clk 0:02:22]}  h6 {[%clk 0:02:30]} 15. Nxe6 {[%clk 0:02:08]}  Nxe6 {[%clk 0:02:29]} 16. Qxf5 {[%clk 0:02:08]}  Nxf4 {[%clk 0:02:26]} 17. Qxf4 {[%clk 0:01:58]}  O-O {[%clk 0:02:26]} 18. Nc3 {[%clk 0:01:45]}  Bd6 {[%clk 0:02:24]} 19. Qh4 {[%clk 0:01:42]}  Be7 {[%clk 0:02:12]} 20. Qf4 {[%clk 0:01:37]}  Bb4 {[%clk 0:02:09]} 21. cxd5 {[%clk 0:01:21]}  Bxc3 {[%clk 0:01:54]} 22. bxc3 {[%clk 0:01:22]}  Bxd5 {[%clk 0:01:55]} 23. Bxd5+ {[%clk 0:01:18]}  Qxd5 {[%clk 0:01:55]} 24. Qd2 {[%clk 0:01:18]}  c5 {[%clk 0:01:52]} 25. e3 {[%clk 0:01:18]}  b5 {[%clk 0:01:50]} 26. Rab1 {[%clk 0:01:17]}  b4 {[%clk 0:01:50]} 27. cxb4 {[%clk 0:01:16]}  c4 {[%clk 0:01:51]} 28. b5 {[%clk 0:01:12]}  Ne4 {[%clk 0:01:49]} 29. Qc2 {[%clk 0:01:11]}  c3 {[%clk 0:01:49]} 30. b6 {[%clk 0:01:11]}  Nd2 {[%clk 0:01:49]} 31. b7 {[%clk 0:01:06]}  Rb8 {[%clk 0:01:48]} 32. Qxc3 {[%clk 0:01:01]}  Nxf1 {[%clk 0:01:49]} 33. Qc7 {[%clk 0:00:50]}  Nd2 {[%clk 0:01:44]} 34. Rb6 {[%clk 0:00:38]}  Nf3+ {[%clk 0:01:43]} 35. Kf1 {[%clk 0:00:38]}  Nxh2+ {[%clk 0:01:44]} 36. Ke2 {[%clk 0:00:38]}  Qxa2+ {[%clk 0:01:41]} 37. Kd3 {[%clk 0:00:39]}  Qa3+ {[%clk 0:01:39]} 38. Ke2 {[%clk 0:00:38]}  Ng4 {[%clk 0:01:30]} 39. Ke1 {[%clk 0:00:10]}  Qa1+ {[%clk 0:01:28]} 40. Ke2 {[%clk 0:00:09]}  Rxf2+ {[%clk 0:01:29]} 41. Kd3 {[%clk 0:00:10]}  Qa3+ {[%clk 0:01:29]} 42. Ke4 {[%clk 0:00:10]}  Nf6+ {[%clk 0:01:29]} 43. Ke5 {[%clk 0:00:09]}  Re8+ {[%clk 0:01:29]} 44. Re6 {[%clk 0:00:06]}  Qxe3+ {[%clk 0:01:30]} 45. Kd6 {[%clk 0:00:06]}  Qxe6+ {[%clk 0:01:30]} 46. Kc5 {[%clk 0:00:06]}  Rc2+ {[%clk 0:01:31]} 47. Kb4 {[%clk 0:00:06]}  Nd5+ {[%clk 0:01:30]} 48. Kb3 {[%clk 0:00:05]}  Ne3+ {[%clk 0:01:30]} 49. Ka3 {[%clk 0:00:04]}  Qa6+ {[%clk 0:01:30]} 50. Qa5 {[%clk 0:00:03]}  Qd3+ {[%clk 0:01:29]} 0-1

[Event "December 12 Late 2023"]
[Site "https://www.chess.com"]
[Date "2023.12.12"]
[Round "7"]
[White "ChessSG1"]
[Black "Assylov, Miras"]
[Result "0-1"]
[Board "67"]
[TimeControl "180+1"]
[BlackFideId "13728873"]
[WhiteElo "2486"]
[BlackElo "2570"]
[BlackTeam "KAZ"]
[WhiteClock "0:00:00"]
[BlackClock "0:00:02"]

1. Nf3 {[%clk 0:03:00]}  Nf6 {[%clk 0:02:59]} 2. c4 {[%clk 0:03:01]}  g6 {[%clk 0:02:37]} 3. g3 {[%clk 0:03:01]}  Bg7 {[%clk 0:02:37]} 4. Bg2 {[%clk 0:03:01]}  O-O {[%clk 0:02:38]} 5. O-O {[%clk 0:03:01]}  d6 {[%clk 0:02:39]} 6. Nc3 {[%clk 0:02:56]}  e5 {[%clk 0:02:38]} 7. Nb1 {[%clk 0:02:57]}  Re8 {[%clk 0:02:19]} 8. Nc3 {[%clk 0:02:56]}  Nc6 {[%clk 0:02:08]} 9. Rb1 {[%clk 0:02:55]}  a5 {[%clk 0:02:07]} 10. a3 {[%clk 0:02:54]}  e4 {[%clk 0:02:00]} 11. Ne1 {[%clk 0:02:38]}  Bf5 {[%clk 0:01:51]} 12. Nc2 {[%clk 0:02:35]}  Qd7 {[%clk 0:01:50]} 13. Ne3 {[%clk 0:02:25]}  Bh3 {[%clk 0:01:49]} 14. b4 {[%clk 0:02:19]}  axb4 {[%clk 0:01:49]} 15. axb4 {[%clk 0:02:20]}  h5 {[%clk 0:01:44]} 16. Bb2 {[%clk 0:02:05]}  Nh7 {[%clk 0:01:37]} 17. Bxh3 {[%clk 0:01:46]}  Qxh3 {[%clk 0:01:38]} 18. Ncd5 {[%clk 0:01:45]}  Ne5 {[%clk 0:01:23]} 19. Nxc7 {[%clk 0:01:12]}  Ng4 {[%clk 0:01:17]} 20. Nxg4 {[%clk 0:01:06]}  hxg4 {[%clk 0:01:18]} 21. Nd5 {[%clk 0:00:49]}  Ng5 {[%clk 0:00:51]} 22. Nf4 {[%clk 0:00:48]}  Qh6 {[%clk 0:00:48]} 23. Bxg7 {[%clk 0:00:46]}  Kxg7 {[%clk 0:00:49]} 24. h4 {[%clk 0:00:37]}  gxh3 {[%clk 0:00:35]} 25. Qc2 {[%clk 0:00:26]}  h2+ {[%clk 0:00:32]} 26. Kh1 {[%clk 0:00:26]}  Rad8 {[%clk 0:00:30]} 27. Qc3+ {[%clk 0:00:22]}  Kg8 {[%clk 0:00:29]} 28. Nd5 {[%clk 0:00:20]}  Re5 {[%clk 0:00:27]} 29. Nf6+ {[%clk 0:00:19]}  Kg7 {[%clk 0:00:27]} 30. Ng4 {[%clk 0:00:19]}  Qh3 {[%clk 0:00:24]} 31. Nxe5 {[%clk 0:00:18]}  dxe5 {[%clk 0:00:23]} 32. Qxe5+ {[%clk 0:00:17]}  f6 {[%clk 0:00:24]} 33. Qe7+ {[%clk 0:00:09]}  Nf7 {[%clk 0:00:17]} 34. d4 {[%clk 0:00:02]}  exd3 {[%clk 0:00:04]} 35. exd3 {[%clk 0:00:01]}  Rxd3 {[%clk 0:00:05]} 36. Qe4 {[%clk 0:00:02]}  Rd2 {[%clk 0:00:03]} 37. Qg2 {[%clk 0:00:01]}  Qe6 {[%clk 0:00:03]} 38. Kxh2 {[%clk 0:00:00]}  Qxc4 {[%clk 0:00:02]} 0-1

[Event "December 12 Late 2023"]
[Site "https://www.chess.com"]
[Date "2023.12.12"]
[Round "7"]
[White "Kashefi, Amir Hosein"]
[Black "Gutierrez Olivares, Daniel"]
[Result "0-1"]
[Board "71"]
[TimeControl "180+1"]
[WhiteFideId "12557935"]
[BlackFideId "2264005"]
[WhiteElo "2561"]
[BlackElo "2466"]
[WhiteTeam "IRI"]
[BlackTeam "ESP"]
[WhiteClock "0:00:00"]
[BlackClock "0:00:07"]

1. d4 {[%clk 0:03:00]}  e6 {[%clk 0:03:00]} 2. Nf3 {[%clk 0:03:01]}  Nf6 {[%clk 0:03:00]} 3. Bf4 {[%clk 0:03:01]}  Bd6 {[%clk 0:02:59]} 4. e3 {[%clk 0:03:02]}  Bxf4 {[%clk 0:02:59]} 5. exf4 {[%clk 0:03:03]}  c5 {[%clk 0:02:59]} 6. dxc5 {[%clk 0:03:02]}  Qa5+ {[%clk 0:02:59]} 7. Nc3 {[%clk 0:02:58]}  Qxc5 {[%clk 0:02:58]} 8. Qd4 {[%clk 0:02:48]}  Qa5 {[%clk 0:02:52]} 9. O-O-O {[%clk 0:02:47]}  O-O {[%clk 0:02:50]} 10. g4 {[%clk 0:02:47]}  Nc6 {[%clk 0:02:49]} 11. Qd6 {[%clk 0:02:42]}  Nxg4 {[%clk 0:02:44]} 12. Rg1 {[%clk 0:02:41]}  Nh6 {[%clk 0:02:15]} 13. Ne4 {[%clk 0:02:38]}  Qb4 {[%clk 0:02:08]} 14. Ne5 {[%clk 0:02:12]}  Qxe4 {[%clk 0:02:02]} 15. Nxc6 {[%clk 0:01:53]}  Qxc6 {[%clk 0:01:57]} 16. Qe7 {[%clk 0:01:40]}  Nf5 {[%clk 0:01:49]} 17. Qf6 {[%clk 0:01:39]}  Kh8 {[%clk 0:01:47]} 18. Qg5 {[%clk 0:01:32]}  f6 {[%clk 0:01:42]} 19. Qg4 {[%clk 0:01:32]}  d5 {[%clk 0:01:39]} 20. Bd3 {[%clk 0:01:32]}  Qc7 {[%clk 0:01:34]} 21. Qh3 {[%clk 0:01:23]}  Qxf4+ {[%clk 0:01:28]} 22. Kb1 {[%clk 0:01:22]}  Rf7 {[%clk 0:01:28]} 23. Rg4 {[%clk 0:01:16]}  Qc7 {[%clk 0:01:28]} 24. Rdg1 {[%clk 0:01:15]}  e5 {[%clk 0:01:24]} 25. Qh5 {[%clk 0:01:09]}  e4 {[%clk 0:01:21]} 26. Bb5 {[%clk 0:00:29]}  Be6 {[%clk 0:01:19]} 27. Ba4 {[%clk 0:00:28]}  Rc8 {[%clk 0:01:04]} 28. Bb3 {[%clk 0:00:22]}  d4 {[%clk 0:00:59]} 29. Rxe4 {[%clk 0:00:21]}  Bxb3 {[%clk 0:00:55]} 30. Ka1 {[%clk 0:00:05]}  Bd5 {[%clk 0:00:31]} 31. Rf4 {[%clk 0:00:02]}  Qxc2 {[%clk 0:00:25]} 32. Qxf5 {[%clk 0:00:01]}  Qxf5 {[%clk 0:00:09]} 33. Rxf5 {[%clk 0:00:01]}  Be4 {[%clk 0:00:10]} 34. Rf4 {[%clk 0:00:01]}  f5 {[%clk 0:00:07]} 35. f3 {[%clk 0:00:01]}  Rfc7 {[%clk 0:00:07]} 36. a4 {[%clk 0:00:00]}  Rc1+ {[%clk 0:00:07]} 0-1

[Event "December 12 Late 2023"]
[Site "https://www.chess.com"]
[Date "2023.12.12"]
[Round "7"]
[White "Mazurkiewicz, Michal"]
[Black "Khater, Sherif"]
[Result "0-1"]
[Board "72"]
[TimeControl "180+1"]
[WhiteFideId "1124943"]
[BlackFideId "2034280"]
[WhiteElo "2466"]
[BlackElo "2557"]
[WhiteTeam "POL"]
[BlackTeam "USA"]
[WhiteClock "0:00:00"]
[BlackClock "0:01:09"]

1. e4 {[%clk 0:03:00]}  a6 {[%clk 0:03:00]} 2. a4 {[%clk 0:02:58]}  c6 {[%clk 0:03:00]} 3. d3 {[%clk 0:02:57]}  d5 {[%clk 0:03:01]} 4. Nd2 {[%clk 0:02:57]}  g6 {[%clk 0:03:01]} 5. Ngf3 {[%clk 0:02:58]}  Bg7 {[%clk 0:03:01]} 6. g3 {[%clk 0:02:58]}  Nf6 {[%clk 0:03:01]} 7. Bg2 {[%clk 0:02:58]}  O-O {[%clk 0:03:01]} 8. O-O {[%clk 0:02:59]}  Nbd7 {[%clk 0:03:00]} 9. e5 {[%clk 0:02:57]}  Ng4 {[%clk 0:02:59]} 10. e6 {[%clk 0:02:57]}  fxe6 {[%clk 0:02:59]} 11. Ng5 {[%clk 0:02:57]}  Ndf6 {[%clk 0:02:55]} 12. h3 {[%clk 0:02:27]}  Ne5 {[%clk 0:02:54]} 13. Re1 {[%clk 0:02:27]}  Nf7 {[%clk 0:02:54]} 14. Nxe6 {[%clk 0:02:26]}  Bxe6 {[%clk 0:02:54]} 15. Rxe6 {[%clk 0:02:27]}  Qd7 {[%clk 0:02:53]} 16. Qe1 {[%clk 0:02:21]}  Rae8 {[%clk 0:02:52]} 17. Nf3 {[%clk 0:02:20]}  Ne4 {[%clk 0:02:45]} 18. dxe4 {[%clk 0:00:58]}  Qxe6 {[%clk 0:02:45]} 19. exd5 {[%clk 0:00:58]}  Qxd5 {[%clk 0:02:07]} 20. Ng5 {[%clk 0:00:57]}  Qd7 {[%clk 0:02:00]} 21. Ne6 {[%clk 0:00:56]}  Rd8 {[%clk 0:01:31]} 22. c3 {[%clk 0:00:51]}  Qd1 {[%clk 0:01:30]} 23. Bf4 {[%clk 0:00:33]}  Qxe1+ {[%clk 0:01:25]} 24. Rxe1 {[%clk 0:00:34]}  Bf6 {[%clk 0:01:23]} 25. Nxf8 {[%clk 0:00:26]}  Kxf8 {[%clk 0:01:24]} 26. g4 {[%clk 0:00:24]}  g5 {[%clk 0:01:21]} 27. Bg3 {[%clk 0:00:23]}  Rd2 {[%clk 0:01:19]} 28. Rb1 {[%clk 0:00:22]}  Nd6 {[%clk 0:01:17]} 29. Bf1 {[%clk 0:00:20]}  Ne4 {[%clk 0:01:15]} 30. b4 {[%clk 0:00:10]}  Nxc3 {[%clk 0:01:14]} 31. Rb3 {[%clk 0:00:09]}  Ne2+ {[%clk 0:01:13]} 32. Bxe2 {[%clk 0:00:09]}  Rxe2 {[%clk 0:01:14]} 33. b5 {[%clk 0:00:10]}  cxb5 {[%clk 0:01:14]} 34. axb5 {[%clk 0:00:11]}  a5 {[%clk 0:01:15]} 35. Rd3 {[%clk 0:00:10]}  a4 {[%clk 0:01:13]} 36. Rd7 {[%clk 0:00:09]}  a3 {[%clk 0:01:12]} 37. Rxb7 {[%clk 0:00:07]}  a2 {[%clk 0:01:12]} 38. Ra7 {[%clk 0:00:05]}  a1=Q+ {[%clk 0:01:12]} 39. Rxa1 {[%clk 0:00:05]}  Bxa1 {[%clk 0:01:13]} 40. b6 {[%clk 0:00:05]}  Be5 {[%clk 0:01:10]} 41. b7 {[%clk 0:00:04]}  Bxg3 {[%clk 0:01:09]} 42. fxg3 {[%clk 0:00:00]}  Rb2 {[%clk 0:01:09]} 0-1

[Event "December 12 Late 2023"]
[Site "https://www.chess.com"]
[Date "2023.12.12"]
[Round "7"]
[White "Keleberda, Tymur"]
[Black "Serra Canals, Oriol"]
[Result "1-0"]
[Board "73"]
[TimeControl "180+1"]
[WhiteFideId "14174294"]
[BlackFideId "22276084"]
[WhiteElo "2549"]
[BlackElo "2459"]
[WhiteTeam "CAN"]
[BlackTeam "ESP"]
[WhiteClock "0:01:24"]
[BlackClock "0:00:14"]

1. e4 {[%clk 0:03:00]}  e6 {[%clk 0:02:58]} 2. d4 {[%clk 0:03:01]}  d5 {[%clk 0:02:57]} 3. Nc3 {[%clk 0:03:01]}  Bb4 {[%clk 0:02:55]} 4. e5 {[%clk 0:03:01]}  c5 {[%clk 0:02:56]} 5. a3 {[%clk 0:03:00]}  Bxc3+ {[%clk 0:02:56]} 6. bxc3 {[%clk 0:03:01]}  cxd4 {[%clk 0:02:56]} 7. cxd4 {[%clk 0:02:58]}  Ne7 {[%clk 0:02:52]} 8. Bd3 {[%clk 0:02:55]}  Qc7 {[%clk 0:02:48]} 9. Ne2 {[%clk 0:02:53]}  Nbc6 {[%clk 0:02:48]} 10. O-O {[%clk 0:02:52]}  Bd7 {[%clk 0:02:29]} 11. a4 {[%clk 0:02:52]}  Na5 {[%clk 0:02:29]} 12. Ba3 {[%clk 0:02:52]}  Nc4 {[%clk 0:02:29]} 13. Bxc4 {[%clk 0:02:38]}  Qxc4 {[%clk 0:02:29]} 14. Bxe7 {[%clk 0:02:35]}  Kxe7 {[%clk 0:02:30]} 15. Qd2 {[%clk 0:02:26]}  Rhc8 {[%clk 0:02:28]} 16. c3 {[%clk 0:02:22]}  Bxa4 {[%clk 0:02:25]} 17. Rfb1 {[%clk 0:02:16]}  Bb5 {[%clk 0:02:24]} 18. Ng3 {[%clk 0:02:16]}  a6 {[%clk 0:02:16]} 19. Qg5+ {[%clk 0:02:16]}  Kf8 {[%clk 0:02:16]} 20. Nh5 {[%clk 0:02:16]}  g6 {[%clk 0:01:50]} 21. Nf6 {[%clk 0:02:04]}  Qxc3 {[%clk 0:01:21]} 22. Qh6+ {[%clk 0:01:47]}  Ke7 {[%clk 0:01:17]} 23. Qh4 {[%clk 0:01:46]}  Kf8 {[%clk 0:00:58]} 24. Nxh7+ {[%clk 0:01:43]}  Kg7 {[%clk 0:00:57]} 25. Ng5 {[%clk 0:01:43]}  Rh8 {[%clk 0:00:56]} 26. Qf4 {[%clk 0:01:43]}  Raf8 {[%clk 0:00:53]} 27. Qf6+ {[%clk 0:01:43]}  Kg8 {[%clk 0:00:52]} 28. Nxe6 {[%clk 0:01:43]}  Rh7 {[%clk 0:00:34]} 29. Nxf8 {[%clk 0:01:42]}  Rh5 {[%clk 0:00:25]} 30. Ne6 {[%clk 0:01:25]}  Rh7 {[%clk 0:00:14]} 31. Qd8+ {[%clk 0:01:24]} 1-0

[Event "December 12 Late 2023"]
[Site "https://www.chess.com"]
[Date "2023.12.12"]
[Round "7"]
[White "Asish Panda"]
[Black "Bold, Andre"]
[Result "1/2-1/2"]
[Board "75"]
[TimeControl "180+1"]
[WhiteFideId "45012458"]
[BlackFideId "16208471"]
[WhiteElo "2538"]
[BlackElo "2446"]
[WhiteTeam "IND"]
[BlackTeam "GER"]
[WhiteClock "0:00:03"]
[BlackClock "0:00:54"]

1. e4 {[%clk 0:03:00]}  c6 {[%clk 0:03:00]} 2. c4 {[%clk 0:02:59]}  d5 {[%clk 0:03:01]} 3. cxd5 {[%clk 0:03:00]}  cxd5 {[%clk 0:03:02]} 4. exd5 {[%clk 0:03:00]}  Nf6 {[%clk 0:03:02]} 5. Nc3 {[%clk 0:03:01]}  g6 {[%clk 0:03:02]} 6. Nf3 {[%clk 0:03:01]}  Nxd5 {[%clk 0:03:01]} 7. d4 {[%clk 0:03:02]}  Bg7 {[%clk 0:03:00]} 8. Bc4 {[%clk 0:03:01]}  Nxc3 {[%clk 0:03:00]} 9. bxc3 {[%clk 0:03:01]}  O-O {[%clk 0:03:01]} 10. O-O {[%clk 0:03:02]}  Nc6 {[%clk 0:03:00]} 11. Re1 {[%clk 0:03:01]}  e5 {[%clk 0:02:47]} 12. Be3 {[%clk 0:02:48]}  Bg4 {[%clk 0:02:38]} 13. h3 {[%clk 0:02:31]}  exd4 {[%clk 0:02:30]} 14. cxd4 {[%clk 0:02:23]}  Bxf3 {[%clk 0:02:22]} 15. Qxf3 {[%clk 0:02:21]}  Nxd4 {[%clk 0:02:22]} 16. Bxd4 {[%clk 0:02:21]}  Qxd4 {[%clk 0:02:22]} 17. Bb3 {[%clk 0:02:17]}  Qxa1 {[%clk 0:02:04]} 18. Rxa1 {[%clk 0:02:15]}  Bxa1 {[%clk 0:02:05]} 19. Qxb7 {[%clk 0:02:15]}  Kg7 {[%clk 0:01:35]} 20. g3 {[%clk 0:01:59]}  Bd4 {[%clk 0:01:26]} 21. Kg2 {[%clk 0:01:43]}  Rab8 {[%clk 0:01:26]} 22. Qd7 {[%clk 0:01:42]}  Rbd8 {[%clk 0:01:22]} 23. Qb7 {[%clk 0:01:41]}  Bb6 {[%clk 0:01:20]} 24. Qc6 {[%clk 0:01:33]}  Kg8 {[%clk 0:01:16]} 25. f4 {[%clk 0:01:29]}  Rd2+ {[%clk 0:01:13]} 26. Kf3 {[%clk 0:01:25]}  Rf2+ {[%clk 0:01:12]} 27. Kg4 {[%clk 0:01:22]}  h5+ {[%clk 0:01:08]} 28. Kg5 {[%clk 0:01:20]}  Kg7 {[%clk 0:01:08]} 29. Qf6+ {[%clk 0:01:15]}  Kh7 {[%clk 0:01:08]} 30. Bxf7 {[%clk 0:00:22]}  Bd8 {[%clk 0:01:07]} 31. Bxg6+ {[%clk 0:00:23]}  Kg8 {[%clk 0:01:07]} 32. Bf7+ {[%clk 0:00:22]}  Kh7 {[%clk 0:01:04]} 33. Bg6+ {[%clk 0:00:13]}  Kg8 {[%clk 0:01:03]} 34. Bf7+ {[%clk 0:00:05]}  Kh7 {[%clk 0:00:54]} 35. Bg6+ {[%clk 0:00:03]} 1/2-1/2